{"text_format":"1","workbook":"xlsx","n_sheets":2,"sheets":["INSS-alimentar","juntada RRA"],"not_rendered":{"charts":0,"images":0,"macros":1,"external_links":0,"defined_names":22,"comments":0,"pivot_tables":0},"unopened":[],"bounds":{"document_bytes":16777216,"sheet_cells":100000,"rows_first":2000,"rows_last":500,"rows_between":2000,"halvings":0,"cell_chars":16384,"cell_head_chars":4096},"cells_cut":0,"cells_raw":0,"read":"whole","date_system":"1900"}

{"sheet":"INSS-alimentar","index":0,"n_rows":14,"n_cols":49,"rows_kept":14,"cut":false,"hidden":false,"merged":[[7,0,9,0],[7,1,9,1],[7,2,9,2],[7,3,9,3],[7,4,9,4],[3,1,3,8],[4,1,4,8],[5,1,5,8],[6,1,6,2],[6,3,6,7],[8,18,8,20],[8,21,8,23],[8,24,8,26],[7,5,9,5],[7,6,9,6],[7,7,9,7],[7,8,9,8],[7,9,9,9],[7,10,9,10],[13,1,13,3],[8,44,8,46],[8,47,8,48],[8,27,8,29],[8,30,8,31],[8,32,8,34],[8,35,8,37],[8,38,8,40],[8,41,8,43],[7,11,9,11],[7,12,9,12],[7,13,9,13],[7,14,7,31],[7,32,7,48],[8,14,9,14],[8,15,8,17]]}
["nr da remessa",null,2,3,4,5,6,7,8,9,10,11,12,13,14,15,16,17,18,19,20,21,22,23,24,25,26,27,28,29,30,31,32,33,34,35,36,37,38,39,40,41,42,43,44,45,46,47,48]
[4]
[]
[null,"Coordenadoria de Processamento de Feitos em Execução Judicial"]
[null,"Seção de Precatórios e RPVs"]
[null,"Relatório dos precatórios enviados  para PAGAMENTO em dezembro de 2021"]
[null,"Entidade devedora :",null,{"$f":"K12","v":"Instituto Nacional do Seguro Social - INSS"},null,null,null,null,{"$f":"\"Natureza :   \"&UPPER(M12)","v":"Natureza :   ALIMENTAR"}]
["sequencial","tipo","Nº","data da autuação","DATA DO PGTO","processo de origem","data da autuação","trânsito em julgado","tipo de causa","órgão de origem","entidade devedora","origem do crédito reqte","natureza do crédito","origem do crédito advogado","VALORES   INCLUSOS   NA   PROPOSTA 2021",null,null,null,null,null,null,null,null,null,null,null,null,null,null,null,null,null,"VALOR ATUALIZADO PARA PAGAMENTO"]
[null,null,null,null,null,null,null,null,null,null,null,null,null,null,"data base","T O T A L",null,null,"ADV I",null,null,"ADV   II",null,null,"REQUERENTE",null,null,"PSSS",null,null,"RRA",null,"T O T A L",null,null,"ADV   I",null,null,"ADV   II",null,null,"REQUERENTE",null,null,"P S S",null,null,"R R A"]
[null,null,null,null,null,null,null,null,null,null,null,null,null,null,null,"principal","juros","total","principal","juros","total","principal","juros","total","principal","juros","total","Base","Desconto","Patronal","exercícios anteriores","Dedução","principal","juros","total","principal","juros","total","principal","juros","total","principal","juros","total","Base","Desconto","Patronal","exercícios anteriores","Dedução"]
[]
[1,"PRC",5528,"2019-10-28","2021-12-01","MS 6.864/DF","2000-04-05","2006-05-03","Administrativo - Servidor Público Civil - Sistema Remuneratório e Benefícios","Ministério do Planejamento, Orçamento e Gestão","Instituto Nacional do Seguro Social - INSS","Reajuste  3,17% - Lei 8.880/94","Alimentar","Dedução de Honorários Contratuais","2020-07-01",21175.58,46995.61,68171.19,1270.53,2819.7200000000003,4090.25,0,0,0,19905.05,44175.89,64080.94,21175.58,2329.31,4658.62,64080.94,2329.31,24094.49,53473.649999999994,77568.14,1445.66,3208.4000000000005,4654.0600000000004,0,0,0,22648.83,50265.25,72914.080000000002,24094.49,2650.39,5300.78,72914.080000000002,2650.39]
["XXX",null,"XXX","XXX","XXX","XXX","XXX",null,"XXX","XXX",null,"XXX","XXX","XXX","XXX","XXX","XXX","XXX","XXX","XXX","XXX","XXX","XXX","XXX","XXX","XXX","XXX","XXX","XXX","XXX","XXX","XXX"]
[1,"PRECATÓRIOS PAGOS",null,null,null,null,null,null,null,null,null,null,null,null,null,null,"Total incluso na proposta",{"$f":"SUM(R12:R12)","v":68171.19},null,null,null,null,null,null,null,null,null,null,null,null,null,"Totais pagos",{"$f":"SUM(AG12:AG12)","v":24094.49},53473.649999999994,77568.14,1445.66,3208.4000000000005,4654.0600000000004,0,0,0,22648.83,50265.25,72914.080000000002]

{"sheet":"juntada RRA","index":1,"n_rows":20,"n_cols":7,"rows_kept":20,"cut":false,"hidden":true,"merged":[[1,6,1,7],[19,5,19,22],[18,5,18,22],[14,5,14,22],[6,5,6,22],[8,5,8,22],[12,5,12,22],[16,5,16,22]]}
[{"$f":"NOW()","v":"2022-01-04T13:12:00.460"}]
[{"$f":"VLOOKUP(A8,basePRC,3)","v":{"$error":"#REF!"}},null,null,null,null,"PRC",{"$f":"#REF!","v":{"$error":"#REF!"}}]
[]
[]
[]
[]
["Sequencial : ",null,null,null,null,"Superior Tribunal de Justiça"]
[{"$f":"#REF!","v":{"$error":"#REF!"}}]
[null,null,null,null,null,{"$f":"IF(A2=\"RPV\",\"Requisição de Pequeno Valor\",IF(A2=\"PRC\",\"Precatório\",\"\"))&\"  \"&VLOOKUP(A8,basePRC,4)&\"/DF\"&\"       Registro (\"&VLOOKUP(A8,basePRC,5)&\")\"","v":{"$error":"#REF!"}}]
[]
[]
[]
[null,null,null,null,null,"JUNTADA"]
[]
[null,null,null,null,null,{"$f":"\"                          Junto a estes autos cópia das planilhas de cálculo que deram origem aos valores do processo em epígrafe, extraída da Exe\"&VLOOKUP(A8,basePRC,8)&\" (\"&VLOOKUP(A8,basePRC,12)&\"), para fins de comprovação do número de meses a que se refere o montante requisitado, por se tratar de verba relativa a rendimentos recebidos acumuladamente (RRA).\"","v":{"$error":"#REF!"}}]
[]
[null,null,null,null,null,{"$f":"\"Brasília, \"&DAY(A1)&\" de \"&TEXT(A1,\"mmmm\")&\" de \"&YEAR(A1)&\".\"","v":"Brasília, 4 de janeiro de 2022."}]
[]
[null,null,null,null,null,"Seção de Precatórios e RPV"]
[null,null,null,null,null,"Coordenadoria de Execução Judicial"]